bitfinex/quotes_SOLUSD_20240920
["timestamp","ask_amount","ask_price","bid_price","bid_amount"]
[1726864881829,15.2905,147.1,147.04,25.13683477]
[1726864886029,15.2905,147.1,147.04,23.776884]
[1726864888917,15.2905,147.1,147.01,12.45520833]
[1726864889127,7.07587814,147.09,147.02,23.776884]
[1726864889325,7.07587814,147.09,147.02,25.13705233]
[1726864889730,7.07587814,147.09,147.02,37.59226066]
[1726864890119,15.2905,147.1,147.02,37.59226066]
[1726864891615,15.2905,147.1,147.02,36.23209233]
[1726864891809,15.2905,147.1,147.02,23.776884]
[1726864894737,15.2905,147.1,147.01,23.776884]
[1726864896944,6.83918,147.09,147.01,20.0]
[1726864897123,16.0252,147.08,147.01,20.0]
[1726864897313,16.0252,147.08,146.98,12.70685813]
[1726864897513,16.0252,147.08,146.98,0.2516498]
[1726864897741,16.0252,147.08,146.98,20.2516498]
[1726864899021,16.0252,147.08,146.99,23.776884]
[1726864899223,16.0252,147.08,146.99,25.13731451]
[1726864900426,16.0252,147.08,146.99,37.59252284]
[1726864900628,23.10379915,147.08,147.0,0.12549]
[1726864911332,23.10379915,147.08,147.0,12.58069833]
[1726864911540,23.10379915,147.08,147.01,23.776884]
[1726864912340,23.10379915,147.08,147.0,23.902374]
[1726864914734,23.10379915,147.08,147.0,12.58069833]
[1726864915054,23.10379915,147.08,147.01,23.776884]
[1726864915954,23.10379915,147.08,147.0,23.902374]
[1726864921568,22.2796,147.07,146.98,20.2516498]
[1726864921865,15.6812,147.06,146.98,0.2516498]
[1726864922858,15.6812,147.06,146.98,1.61215683]
[1726864923057,15.6812,147.06,146.98,24.0285338]
[1726864926269,21.6741,147.05,146.98,24.0285338]
[1726864926859,21.6741,147.05,146.98,0.2516498]
[1726864928451,16.1502,147.04,146.98,0.2516498]
[1726864928649,16.1502,147.04,146.98,5.84544578]
[1726864930443,16.1502,147.04,146.98,0.2516498]
[1726864930866,16.1502,147.04,146.98,5.84544578]
[1726864931050,16.1502,147.04,146.98,0.2516498]
[1726864932773,23.23623722,147.04,146.98,0.2516498]
[1726864933072,23.23623722,147.04,146.98,14.06758164]
[1726864933273,23.23623722,147.04,146.98,19.66137762]
[1726864934970,23.23623722,147.04,146.98,5.84544578]
[1726864935360,23.23623722,147.04,146.98,0.2516498]
[1726864935961,23.23623722,147.04,146.99,23.776884]
[1726864936275,16.1502,147.04,147.01,23.776884]
[1726864936450,16.1502,147.04,147.01,36.23209233]
[1726864937775,16.1502,147.04,147.01,23.776884]
[1726864939271,16.1502,147.04,147.01,25.13718413]
[1726864939867,16.1502,147.04,147.01,37.59239246]
[1726864940395,16.1502,147.04,147.01,23.776884]
[1726864942970,16.1502,147.04,147.0,23.776884]
[1726864943481,16.1502,147.04,146.99,44.027864]
[1726864947487,16.1502,147.04,147.01,23.776884]
[1726864958101,15.6562,147.07,147.01,25.13707984]
[1726864960599,15.6562,147.07,147.01,23.776884]
[1726864961585,15.6562,147.07,147.02,3.49973324]
[1726864961786,15.6562,147.07,147.01,23.776884]
[1726864962089,15.6562,147.07,147.02,3.49975525]
[1726864962404,15.6562,147.07,147.01,23.776884]
[1726864962904,15.6562,147.07,147.0,36.23209233]
[1726864963307,15.6562,147.07,147.02,3.50060934]
[1726864963510,15.6562,147.07,147.0,36.23209233]
[1726864963685,15.6562,147.07,147.02,23.776884]
[1726864964202,15.6562,147.07,147.01,23.776884]
[1726864964402,15.6562,147.07,147.02,3.50222221]
[1726864964621,15.6562,147.07,147.01,23.776884]
[1726864977195,15.6562,147.07,147.0,23.776884]
[1726864977394,15.6562,147.07,147.0,36.23209233]
[1726864985620,15.6562,147.07,147.02,36.23209233]
[1726864985811,15.6562,147.07,147.04,23.776884]
[1726864986114,15.6562,147.07,147.04,36.23209233]
[1726864987098,15.6562,147.07,147.04,23.776884]
[1726864989124,15.6562,147.07,146.95,21.3198]
[1726864989416,15.6562,147.07,147.0,12.45520833]
[1726864989619,15.6562,147.07,147.0,23.902374]
[1726864989924,15.6562,147.07,147.0,36.35758233]
[1726864991419,15.6562,147.07,147.02,23.776884]
[1726864991801,15.6562,147.07,147.0,36.35758233]
[1726864992719,15.6562,147.07,147.02,23.776884]
[1726864993122,15.6562,147.07,147.02,25.13705592]
[1726864993914,15.6562,147.07,147.03,0.12549]
[1726864995827,7.0837397,147.1,147.05,23.776884]
[1726864996029,7.0837397,147.1,147.07,23.776884]
[1726864996210,16.2503,147.11,147.07,23.776884]
[1726864997129,16.2503,147.11,147.06,23.776884]
[1726864997431,16.2503,147.11,147.06,25.13665784]
[1726864998332,16.2503,147.11,147.06,23.776884]
[1726864998633,16.2503,147.11,147.05,23.902374]
[1726865000422,16.2503,147.11,147.05,36.35758233]
[1726865002428,16.2503,147.11,147.05,23.902374]
[1726865012421,16.2503,147.11,147.05,36.35758233]
[1726865017014,16.2503,147.11,147.07,23.776884]
[1726865017217,16.2503,147.11,147.05,36.35758233]
[1726865017416,16.2503,147.11,147.05,23.902374]
[1726865018849,16.2503,147.11,147.06,0.12549]
[1726865019155,16.2503,147.11,147.08,0.12549]
[1726865019343,16.2503,147.11,147.09,23.776884]
[1726865020124,0.3168405,147.14,147.09,23.776884]
[1726865022933,0.3168405,147.14,147.08,0.12549]
[1726865023132,0.3168405,147.14,147.08,23.902374]
[1726865023442,0.3168405,147.14,147.08,23.776884]
[1726865023836,0.3168405,147.14,147.06,20.0]
[1726865024944,0.3168405,147.14,147.07,23.776884]
[1726865025451,0.3168405,147.14,147.08,0.12549]
[1726865029354,0.3168405,147.14,147.09,23.776884]
[1726865029735,0.3168405,147.14,147.08,23.902374]
[1726865033246,0.3168405,147.14,147.08,0.12549]
[1726865033638,0.3168405,147.14,147.07,23.902374]
[1726865034053,0.3168405,147.14,147.07,23.776884]
[1726865034255,0.3168405,147.14,147.06,32.45520833]
[1726865034860,0.3168405,147.14,147.06,20.0]
[1726865035058,6.4469,147.12,147.01,20.0]
[1726865035264,6.4469,147.12,147.03,20.0]
[1726865035557,6.4469,147.12,146.99,15.0801]
[1726865035856,6.4469,147.12,147.0,24.89006585]
[1726865036239,6.4469,147.12,147.01,0.12549]
[1726865036441,6.4469,147.12,147.01,12.58069833]
[1726865036741,6.4469,147.12,147.03,36.48307233]
[1726865036947,6.4469,147.12,147.03,36.35758233]
[1726865037661,6.4469,147.12,147.04,0.12549]
[1726865042262,6.4469,147.12,147.05,23.902374]
[1726865042460,6.4469,147.12,147.07,23.776884]
[1726865042771,6.4469,147.12,147.08,1.35964434]
[1726865043449,6.4469,147.12,147.07,23.776884]
[1726865047744,6.4469,147.12,147.08,1.3596807]
[1726865048551,6.4469,147.12,147.09,23.776884]
[1726865048867,23.37826092,147.13,147.1,1.3594402]
[1726865050782,0.3168405,147.14,147.11,25.13618256]
[1726865051073,0.3168405,147.14,147.13,23.776884]
[1726865053954,0.3168405,147.14,147.06,20.12549]
[1726865054157,0.3168405,147.14,147.07,23.902374]
[1726865054353,0.3168405,147.14,147.09,24.027864]
[1726865054659,0.3168405,147.14,147.11,23.776884]
[1726865055059,0.3168405,147.14,147.05,6.6083]
[1726865055270,0.3168405,147.14,147.06,20.0]
[1726865056378,0.3168405,147.14,147.07,24.027864]
[1726865056765,0.3168405,147.14,147.09,23.776884]
[1726865058258,0.3168405,147.14,147.1,0.12549]
[1726865061670,0.3168405,147.14,147.09,23.776884]
[1726865064360,0.3168405,147.14,147.08,23.776884]
[1726865064582,0.3168405,147.14,147.1,23.776884]
[1726865071380,0.3168405,147.14,147.07,0.12549]
[1726865071582,16.5321,147.13,147.07,0.12549]
[1726865073281,16.5321,147.13,147.08,23.776884]
[1726865073800,16.5321,147.13,147.1,23.776884]
[1726865077386,16.5321,147.13,147.11,1.35935304]
[1726865077588,0.3168405,147.14,147.11,1.35935304]
[1726865078491,0.3168405,147.14,147.1,23.776884]
[1726865079596,0.3168405,147.14,147.11,0.12549]
[1726865081294,0.3168405,147.14,147.1,23.776884]
[1726865085194,0.3168405,147.14,147.11,3.49368405]
[1726865086892,0.3168405,147.14,147.11,4.85301107]
[1726865087679,0.3168405,147.14,147.11,1.35932702]
[1726865087992,0.3168405,147.14,147.11,4.85387841]
[1726865088598,0.3168405,147.14,147.11,1.35932702]
[1726865088897,0.3168405,147.14,147.1,23.776884]
[1726865089084,0.3168405,147.14,147.11,3.49526681]
[1726865089285,0.3168405,147.14,147.11,1.35932562]
[1726865090368,0.3168405,147.14,147.12,0.12549]
[1726865090575,0.3168405,147.14,147.12,23.776884]
[1726865090774,0.3168405,147.14,147.11,0.25098]
[1726865090983,0.3168405,147.14,147.13,23.776884]
[1726865093878,0.3168405,147.14,147.13,27.27650589]
[1726865094602,0.3168405,147.14,147.13,23.902374]
[1726865094805,0.3168405,147.14,147.13,27.4019001]
[1726865097482,0.3168405,147.14,147.13,0.25098]
[1726865097700,0.3168405,147.14,147.13,25.38679192]
[1726865097889,0.3168405,147.14,147.13,28.88592119]
[1726865098088,0.3168405,147.14,147.13,27.52699327]
[1726865098380,0.3168405,147.14,147.13,27.40150327]
[1726865101186,0.3168405,147.14,147.13,3.49912927]
[1726865102014,0.3168405,147.14,147.07,15.9867]
[1726865102307,0.3168405,147.14,147.08,3.49839767]
[1726865102505,0.3168405,147.14,147.09,3.49839767]
[1726865102819,0.3168405,147.14,147.11,23.776884]
[1726865102981,0.3168405,147.14,147.12,3.49839767]
[1726865103182,0.3168405,147.14,147.11,23.776884]
[1726865103495,0.3168405,147.14,147.12,3.49863835]
[1726865103690,0.3168405,147.14,147.11,23.776884]
[1726865103891,0.3168405,147.14,147.12,3.49863595]
[1726865104217,0.3168405,147.14,147.11,23.776884]
[1726865104409,0.3168405,147.14,147.12,3.49859615]
[1726865104602,0.3168405,147.14,147.11,23.776884]
[1726865104805,0.3168405,147.14,147.12,3.49859467]
[1726865104998,0.3168405,147.14,147.11,23.776884]
[1726865109013,0.3168405,147.14,147.12,1.35934122]
[1726865109222,0.3168405,147.14,147.11,23.776884]
[1726865113321,0.3168405,147.14,147.08,20.25098]
[1726865113516,0.3168405,147.14,147.09,23.776884]
[1726865114503,0.3168405,147.14,147.03,16.5704]
[1726865115201,7.07412006,147.13,147.03,16.5704]
[1726865116111,7.07412006,147.13,147.04,20.12549]
[1726865116632,21.867,147.12,147.02,20.0]
[1726865116801,21.867,147.12,146.98,7.32557444]
[1726865116802,15.3398,147.1,146.98,7.32557444]
[1726865117004,15.3398,147.1,146.98,0.2516498]
[1726865118123,15.3398,147.1,146.98,20.2516498]
[1726865118124,6.3562,147.09,146.98,20.2516498]
[1726865118429,6.3562,147.09,146.98,0.2516498]
[1726865119821,6.3562,147.09,146.99,0.12549]
[1726865120411,6.3562,147.09,146.99,23.902374]
[1726865120801,16.4981,147.07,146.98,20.2516498]
[1726865121012,16.4981,147.07,146.98,0.2516498]
[1726865122610,16.4981,147.07,146.99,23.776884]
[1726865122810,16.4981,147.07,146.99,25.13734348]
[1726865123417,16.4981,147.07,146.99,23.776884]
[1726865125508,23.57467087,147.07,146.99,23.776884]
[1726865125702,23.57467087,147.07,146.99,25.13734252]
[1726865126106,23.57467087,147.07,146.99,23.776884]
[1726865127524,23.07467087,147.07,146.99,23.776884]
[1726865140031,6.27588,147.06,146.98,0.2516498]
[1726865140908,7.10322874,147.05,146.98,0.2516498]
[1726865141830,16.152,147.04,146.98,0.2516498]
[1726865157047,16.152,147.04,146.99,23.776884]
[1726865160349,16.152,147.04,147.0,20.12549]
[1726865160566,7.44782733,147.05,147.01,23.902374]
[1726865160843,7.44782733,147.05,147.01,23.776884]
[1726865161031,7.44782733,147.05,147.0,20.0]
[1726865161227,7.44782733,147.05,146.98,0.2516498]
[1726865161445,15.4523,147.04,146.98,0.2516498]
[1726865169351,6.4229,147.03,146.98,0.2516498]
[1726865171478,7.10596305,147.02,146.98,0.2516498]
[1726865174353,6.4229,147.03,146.98,0.2516498]
[1726865183476,15.4523,147.04,146.98,0.2516498]
[1726865184569,7.44782733,147.05,146.99,0.25098]
[1726865184779,7.44782733,147.05,147.01,23.776884]
[1726865185471,7.44782733,147.05,147.02,1.36025268]
[1726865185672,7.44782733,147.05,147.01,23.776884]
[1726865187767,7.44782733,147.05,147.02,1.48565445]
[1726865188086,7.44782733,147.05,147.03,23.776884]
[1726865190880,15.2269,147.07,147.03,23.776884]
[1726865192088,15.992,147.1,147.04,21.35993832]
[1726865192294,15.992,147.1,147.05,23.776884]
[1726865192694,15.992,147.1,147.06,1.35986351]
[1726865192905,15.992,147.1,147.05,23.776884]
[1726865194303,14.6182439,147.13,147.05,23.776884]
[1726865195778,14.6182439,147.13,147.06,0.12549]
[1726865197101,14.6182439,147.13,147.06,0.25098]
[1726865198880,7.5260506,147.13,147.06,0.25098]
[1726865201300,7.5260506,147.13,147.05,23.776884]
[1726865202004,7.5260506,147.13,147.07,23.776884]
[1726865202593,7.5260506,147.13,147.08,0.12549]
[1726865202808,7.5260506,147.13,147.09,23.776884]
[1726865205919,7.5260506,147.13,147.1,1.35945749]
[1726865206104,7.5260506,147.13,147.11,23.776884]
[1726865207515,0.3168405,147.14,147.11,23.776884]
[1726865207700,0.3168405,147.14,147.12,1.35938405]
[1726865207893,0.3168405,147.14,147.13,23.776884]
[1726865208096,0.3168405,147.14,147.13,24.027864]
[1726865208300,0.3168405,147.14,147.13,44.027864]
[1726865208700,0.3168405,147.14,147.13,43.902374]
[1726865208909,0.3168405,147.14,147.13,43.776884]
[1726865209115,0.3168405,147.14,147.13,23.776884]
[1726865218924,0.3168405,147.14,147.09,20.25098]
[1726865219142,0.3168405,147.14,147.12,23.776884]
[1726865220936,0.3168405,147.14,147.13,25.13614861]
[1726865221241,0.3168405,147.14,147.13,23.776884]
[1726865221730,0.3168405,147.14,147.12,23.776884]
[1726865222333,0.3168405,147.14,147.09,20.12549]
[1726865222636,0.3168405,147.14,147.1,23.776884]
[1726865223012,0.3168405,147.14,147.1,25.13624984]
[1726865225922,0.3168405,147.14,147.11,0.25098]
[1726865226114,0.3168405,147.14,147.13,23.776884]
[1726865229839,0.3168405,147.14,147.11,0.25098]
[1726865230019,0.3168405,147.14,147.1,23.902374]
[1726865231316,0.3168405,147.14,147.1,23.776884]
[1726865236740,0.3168405,147.14,146.99,14.3207376]
[1726865236741,15.1753,147.13,147.03,15.733]
[1726865237927,15.1753,147.13,147.04,21.35979567]
[1726865238343,15.1753,147.13,147.05,24.027864]
[1726865238525,15.1753,147.13,147.07,23.902374]
[1726865238724,15.1753,147.13,147.08,1.35958432]
[1726865239444,15.1753,147.13,147.08,0.12549]
[1726865239824,15.1753,147.13,147.07,23.902374]
[1726865240852,15.1753,147.13,147.07,23.776884]
[1726865241143,15.1753,147.13,147.05,23.902374]
[1726865241451,15.1753,147.13,147.06,20.0]
[1726865242243,15.1753,147.13,147.05,23.902374]
[1726865242548,15.1753,147.13,147.05,23.776884]
[1726865246751,15.1753,147.13,146.99,22.98246434]
[1726865246959,15.1753,147.13,147.02,0.12549]
[1726865247141,15.1753,147.13,147.04,20.0]
[1726865248827,15.1753,147.13,147.03,23.776884]
[1726865249449,21.60718,147.12,147.03,23.776884]
[1726865252147,7.06858302,147.11,147.05,23.776884]
[1726865255062,7.06858302,147.11,147.07,23.776884]
[1726865255264,21.3562,147.12,147.07,23.776884]
[1726865255436,21.3562,147.12,147.03,44.027864]
[1726865255963,21.3562,147.12,147.05,23.902374]
[1726865256147,21.3562,147.12,147.06,0.12549]
[1726865256459,28.42360462,147.12,147.06,0.12549]
[1726865257362,28.42360462,147.12,147.07,23.776884]
[1726865257363,7.06740462,147.12,147.07,23.776884]
[1726865257658,0.3168405,147.14,147.12,0.12549]
[1726865257963,0.3168405,147.14,147.13,23.776884]
[1726865260062,0.3168405,147.14,147.13,44.027864]
[1726865260466,0.3168405,147.14,147.13,43.902374]
[1726865262863,0.3168405,147.14,147.13,23.776884]
[1726865263051,0.3168405,147.14,147.09,0.12549]
[1726865263453,0.3168405,147.14,147.08,0.25098]
[1726865266166,0.3168405,147.14,147.09,20.0]
[1726865266351,0.3168405,147.14,147.1,23.776884]
[1726865268347,0.3168405,147.14,147.1,25.13627306]
[1726865268650,0.3168405,147.14,147.11,0.25098]
[1726865268843,0.3168405,147.14,147.13,23.776884]
[1726865269347,0.3168405,147.14,147.13,44.027864]
[1726865272068,0.3168405,147.14,147.13,60.596264]
[1726865277666,0.3168405,147.14,147.13,44.027864]
[1726865277970,0.3168405,147.14,147.11,20.0]
[1726865279174,0.3168405,147.14,147.12,1.35889887]
[1726865279865,0.3168405,147.14,147.13,24.027864]
[1726865280266,0.3168405,147.14,147.13,44.027864]
[1726865281078,0.3168405,147.14,147.13,45.38670026]
[1726865281553,0.3168405,147.14,147.13,44.027864]
[1726865286961,0.3168405,147.14,147.13,46.746425]
[1726865289785,0.3168405,147.14,147.13,44.027864]
[1726865290654,0.3168405,147.14,147.1,20.0]
[1726865290855,0.3168405,147.14,147.09,5.8308088]
[1726865291279,0.3168405,147.14,147.06,6.0245]
[1726865291582,0.3168405,147.14,147.08,2.719452]
[1726865292464,0.3168405,147.14,147.09,24.027864]
[1726865292780,0.3168405,147.14,147.11,24.027864]
[1726865292982,0.3168405,147.14,147.12,20.0]
[1726865293385,0.3168405,147.14,147.13,23.776884]
[1726865295785,0.3168405,147.14,147.09,0.25098]
[1726865295994,0.3168405,147.14,147.11,23.776884]
[1726865298065,0.3168405,147.14,147.11,25.13623145]
[1726865298381,0.3168405,147.14,147.12,0.12549]
[1726865298587,0.3168405,147.14,147.13,25.13605587]
[1726865299571,0.3168405,147.14,147.13,23.776884]
[1726865304283,0.3168405,147.14,147.13,47.51907933]
[1726865309279,0.3168405,147.14,147.13,47.51878659]
[1726865312587,0.3168405,147.14,147.13,44.027864]
[1726865313084,0.3168405,147.14,147.13,47.52031238]
[1726865313784,0.3168405,147.14,147.13,27.52031238]
[1726865314398,0.3168405,147.14,147.13,3.49244838]
[1726865315104,0.3168405,147.14,147.1,3.49244838]
[1726865315281,0.3168405,147.14,147.11,3.49244838]
[1726865315600,0.3168405,147.14,147.12,3.49244838]
[1726865315994,0.3168405,147.14,147.06,15.5264]
[1726865315995,0.3168405,147.14,147.07,2.719679]
[1726865316174,0.3168405,147.14,147.08,3.49437898]
[1726865316374,0.3168405,147.14,147.09,3.49437898]
[1726865316602,0.3168405,147.14,147.1,3.49437898]
[1726865316794,0.3168405,147.14,147.11,3.49437898]
[1726865317100,0.3168405,147.14,147.12,3.49437898]
[1726865317303,0.3168405,147.14,147.08,3.61950785]
[1726865317488,0.3168405,147.14,147.1,23.776884]
[1726865317682,0.3168405,147.14,147.11,3.49401785]
[1726865317883,0.3168405,147.14,147.12,3.49401785]
[1726865318084,0.3168405,147.14,147.1,23.776884]
[1726865318384,0.3168405,147.14,147.11,3.49387639]
[1726865318700,0.3168405,147.14,147.12,3.49387639]
[1726865318899,0.3168405,147.14,147.11,3.49387639]
[1726865319080,0.3168405,147.14,147.12,3.49387639]
[1726865319279,0.3168405,147.14,147.11,3.49387639]
[1726865319482,0.3168405,147.14,147.12,3.49387639]
[1726865319789,0.3168405,147.14,147.11,3.49387639]
[1726865319993,0.3168405,147.14,147.12,3.49387639]
[1726865320298,0.3168405,147.14,147.11,3.49387639]
[1726865320489,0.3168405,147.14,147.12,3.49387639]
[1726865320690,0.3168405,147.14,147.11,3.49387639]
[1726865320913,0.3168405,147.14,147.12,3.49387639]
[1726865321199,0.3168405,147.14,147.11,3.49387639]
[1726865321503,0.3168405,147.14,147.12,3.49387639]
[1726865321712,0.3168405,147.14,147.11,3.49387639]
[1726865321885,0.3168405,147.14,147.12,3.49387639]
[1726865322082,0.3168405,147.14,147.11,3.49387639]
[1726865322489,0.3168405,147.14,147.11,3.49379202]
[1726865323210,0.3168405,147.14,147.12,3.49379202]
[1726865323415,0.3168405,147.14,147.11,3.49379202]
[1726865323597,0.3168405,147.14,147.12,3.49379202]
[1726865323797,16.2078405,147.14,147.07,20.0]
[1726865324110,16.2078405,147.14,147.03,15.5724]
[1726865324111,16.2078405,147.14,147.08,27.27121311]
[1726865324308,16.2078405,147.14,147.09,3.49432911]
[1726865324494,16.2078405,147.14,147.08,23.776884]
[1726865324809,16.2078405,147.14,147.09,3.49401967]
[1726865325517,16.2078405,147.14,147.08,23.776884]
[1726865325806,16.2078405,147.14,147.09,3.4935183]
[1726865326508,16.2078405,147.14,147.08,23.776884]
[1726865326720,16.2078405,147.14,147.03,15.5724]
[1726865327012,16.2078405,147.14,146.99,16.1587]
[1726865328410,16.2078405,147.14,147.02,24.027864]
[1726865328905,16.2078405,147.14,147.04,24.027864]
[1726865329113,16.2078405,147.14,147.06,23.776884]
[1726865329287,16.2078405,147.14,147.07,1.35973628]
[1726865329487,16.2078405,147.14,147.07,0.12549]
[1726865329699,16.2078405,147.14,147.07,0.25098]
[1726865330509,16.2078405,147.14,147.06,23.776884]
[1726865332193,16.2078405,147.14,147.07,0.25098]
[1726865332395,16.2078405,147.14,147.08,23.776884]
[1726865333611,16.2078405,147.14,147.1,23.776884]
[1726865333803,16.2078405,147.14,147.08,23.776884]
[1726865343116,16.2078405,147.14,147.09,1.3595636]
[1726865343427,16.2078405,147.14,147.09,0.12549]
[1726865343630,16.2078405,147.14,147.08,23.776884]
[1726865344531,16.2078405,147.14,147.09,1.35954235]
[1726865345803,16.2078405,147.14,147.08,23.776884]
[1726865346824,16.2078405,147.14,147.04,0.12549]
[1726865347011,16.2078405,147.14,147.01,20.0]
[1726865348308,16.2078405,147.14,147.02,24.027864]
[1726865348707,16.2078405,147.14,147.03,20.0]
[1726865349033,16.2078405,147.14,147.06,23.776884]
[1726865351514,15.7131,147.12,147.02,0.12549]
[1726865351707,15.7131,147.12,147.01,24.027864]
[1726865352817,15.7131,147.12,147.03,24.027864]
[1726865355821,15.7131,147.12,147.05,23.776884]
[1726865356130,15.7131,147.12,147.06,1.35993569]
[1726865356521,15.7131,147.12,147.07,23.776884]
[1726865358511,15.7131,147.12,147.06,0.12549]
[1726865358512,15.7131,147.12,147.09,23.776884]
[1726865360315,15.7131,147.12,147.06,0.12549]
[1726865361038,15.7131,147.12,147.02,24.027864]
[1726865361211,15.7131,147.12,147.04,0.12549]
[1726865361414,15.7131,147.12,147.05,20.0]
[1726865361619,15.7131,147.12,147.06,23.776884]
[1726865362117,15.7131,147.12,147.04,24.027864]
[1726865362118,15.7131,147.12,147.07,1.35973773]
[1726865362543,15.7131,147.12,147.06,23.902374]
[1726865363832,15.7131,147.12,147.06,25.26210868]
[1726865365428,15.7131,147.12,147.06,25.26211044]
[1726865366233,15.7131,147.12,147.06,23.902374]
[1726865367446,15.7131,147.12,147.06,25.2621106]
[1726865372029,15.7131,147.12,147.07,0.12549]
[1726865372358,0.3168405,147.14,147.09,23.776884]
[1726865372655,0.3168405,147.14,147.11,23.776884]
[1726865373542,0.3168405,147.14,147.06,0.25098]
[1726865373949,0.3168405,147.14,147.06,24.027864]
[1726865374153,0.3168405,147.14,147.07,20.0]
[1726865374358,0.3168405,147.14,147.08,24.027864]
[1726865378848,0.3168405,147.14,147.08,23.776884]
[1726865380143,0.3168405,147.14,147.1,23.776884]
[1726865381054,0.3168405,147.14,147.11,1.35950863]
[1726865382636,0.3168405,147.14,147.1,23.776884]
[1726865385756,0.3168405,147.14,147.11,1.35935466]
[1726865389945,0.3168405,147.14,147.12,23.776884]
[1726865390373,0.3168405,147.14,147.13,25.13613719]
[1726865390552,0.3168405,147.14,147.13,23.776884]
[1726865398782,0.3168405,147.14,147.08,24.027864]
[1726865398956,0.3168405,147.14,147.11,20.0]
[1726865399553,0.3168405,147.14,147.12,23.776884]
[1726865403255,0.3168405,147.14,147.02,6.5882]
[1726865403682,7.40480772,147.14,147.02,6.5882]
[1726865404692,6.2707,147.13,147.03,20.0]
[1726865404871,22.7299,147.13,147.01,16.5526]
[1726865405385,22.7299,147.13,146.98,8.0238529]
[1726865405565,22.7299,147.13,146.98,6.8407498]
[1726865406290,22.7299,147.13,146.99,20.0]
[1726865406983,22.7299,147.13,147.0,24.027864]
[1726865407377,22.7299,147.13,147.03,20.0]
[1726865407560,22.7299,147.13,147.04,23.776884]
[1726865410981,15.7402,147.1,146.98,0.2516498]
[1726865411572,6.2974,147.09,146.98,0.2516498]
[1726865411869,16.5983,147.08,146.98,0.2516498]
[1726865412269,16.5983,147.08,146.98,20.2516498]
[1726865412790,16.5983,147.08,146.99,0.25098]
[1726865413495,16.5983,147.08,146.99,24.027864]
[1726865414182,7.09086814,147.07,146.99,24.027864]
[1726865416472,7.09086814,147.07,147.01,23.776884]
[1726865416873,7.09086814,147.07,146.99,24.027864]
[1726865418892,7.09086814,147.07,147.01,23.776884]
[1726865427503,7.09086814,147.07,146.99,23.902374]
[1726865428303,7.09086814,147.07,146.99,23.776884]
[1726865430197,7.09086814,147.07,146.99,25.13734899]
[1726865430410,7.09086814,147.07,147.0,0.12549]
[1726865435189,7.09086814,147.07,146.99,23.776884]
[1726865435583,21.317,147.06,146.99,23.776884]
[1726865436798,21.317,147.06,146.98,0.2516498]
[1726865437186,7.08341578,147.05,146.98,0.2516498]
[1726865437491,16.4893,147.04,146.98,0.2516498]
[1726865438602,6.6132,147.03,146.98,0.2516498]
[1726865439913,16.064,147.02,146.98,0.2516498]
[1726865440101,0.12549,147.01,146.98,0.2516498]
[1726865440511,21.4596,147.0,146.98,0.2516498]
[1726865447793,28.5434714,147.0,146.98,0.2516498]
[1726865454509,0.12549,146.99,146.94,0.2516498]
[1726865454810,20.12549,146.99,146.94,0.2516498]
[1726865458113,7.07757072,146.98,146.94,0.2516498]
[1726865458294,7.07757072,146.98,146.89,0.2516498]
[1726865458295,7.07757072,146.98,146.89,23.7801836]
[1726865458503,7.07757072,146.98,146.91,23.776884]
[1726865462217,7.07757072,146.98,146.9,23.776884]
[1726865462417,7.07757072,146.98,146.91,1.36120068]
[1726865463022,7.07757072,146.98,146.9,23.776884]
[1726865463320,7.07757072,146.98,146.91,1.36120872]
[1726865464593,7.07757072,146.98,146.92,23.776884]
[1726865464813,7.07757072,146.98,146.9,23.776884]
[1726865466301,7.07757072,146.98,146.92,23.776884]
[1726865466716,7.07757072,146.98,146.93,1.36111648]
[1726865466924,7.07757072,146.98,146.94,23.776884]
[1726865467101,15.4083502,147.0,146.96,23.776884]
[1726865467419,0.2483502,147.0,146.96,23.776884]
[1726865472802,0.2483502,147.0,146.97,1.36069617]
[1726865473013,0.2483502,147.0,146.98,23.776884]
[1726865473309,0.2483502,147.0,146.99,25.13736265]
[1726865473626,0.2483502,147.0,146.98,23.776884]
[1726865473818,0.2483502,147.0,146.92,6.3919]
[1726865474017,0.2483502,147.0,146.95,23.776884]
[1726865475117,0.2483502,147.0,146.95,25.13769707]
[1726865475416,0.2483502,147.0,146.95,23.776884]
[1726865476025,0.2483502,147.0,146.97,23.776884]